Cogmind - Beta 12 @@@ ROGUE MODE // 2023.07.22 @ 00:00:36 Player: javashane Result: Self-destructed Performance ------------- Evolutions (1) 500 Regions Visited (3) 600 Robots Destroyed (9) 45 Value Destroyed (289) 289 Prototype IDs (0) 0 Alien Tech Used (0) 0 Bonus (0) 0 TOTAL SCORE: 1434 Bonus ------- None Cogmind --------- Core Integrity 197/400 Matter 280/300 Energy 125/125 System Corruption 0% Temperature Cool (0) Movement Walking (190) Ox1 Location -9/Mines Parts ------- > --- POWER (1) -------- Light Ion Engine > --- PROPULSION (3) --- Aluminum Leg > --- UTILITY (3) ------ Medium Storage Unit Targeting Computer > --- WEAPON (2) ------- (None) > --- INVENTORY (10) --- Ion Engine Ion Engine Light Treads Aluminum Leg Aluminum Leg Aluminum Leg Light Assault Rifle Peak State ------------ > --- POWER ------------ Light Ion Engine > --- PROPULSION ------- Aluminum Leg Aluminum Leg Aluminum Leg > --- UTILITY ---------- Medium Storage Unit Sensor Array Targeting Computer > --- WEAPON ----------- EM Pulse Gun Light Assault Rifle > --- INVENTORY -------- Ion Engine Ion Engine Light Ion Engine Light Treads Aluminum Leg Aluminum Leg Particle Cannon Light Assault Rifle Grenade Launcher [Rating: 10] Favorites ----------- Power Light Ion Engine Engine Light Ion Engine Propulsion Aluminum Leg Leg Aluminum Leg Utility Medium Storage Unit Device Sensor Array Storage Medium Storage Unit Processor Targeting Computer Weapon Light Assault Rifle Energy Gun EM Pulse Gun Energy Cannon Particle Cannon Ballistic Gun Light Assault Rifle Launcher Grenade Launcher Build | -11 -10 -9 -9 ------- Run | Jun Mat Mat Min Slots Evolved 2 | . . 2 . Power . | . . . . Propulsion 1 | . . 1 . Utility 1 | . . 1 . Weapon . | . . . . Parts Attached 20 | 7 4 6 3 Power 3 | 1 . 2 . Engine 3 | 1 . 2 . Core . | . . . . Reactor . | . . . . Propulsion 4 | 2 . 2 . Treads . | . . . . Leg 4 | 2 . 2 . Wheel . | . . . . Hover . | . . . . Flight . | . . . . Utility 6 | 2 2 1 1 Device 3 | 1 1 . 1 Storage 2 | 1 1 . . Processor 1 | . . 1 . Hackware . | . . . . Protection . | . . . . Artifact . | . . . . Weapon 7 | 2 2 1 2 Energy Gun 1 | . 1 . . Energy Cannon 1 | . . 1 . Ballistic Gun 4 | 2 1 . 1 Ballistic Cannon . | . . . . Launcher 1 | . . . 1 Special Weapon . | . . . . Impact Weapon . | . . . . Slashing Weapon . | . . . . Piercing Weapon . | . . . . Special Melee Weapon . | . . . . Unidentified Prototypes . | . . . . Parts Lost 12 | . 2 4 6 Power 1 | . . 1 . Propulsion 3 | . . 1 2 Utility 3 | . 1 1 1 Weapon 5 | . 1 1 3 Highest Loss Streak 6 | . 1 4 6 To Critical Strikes . | . . . . Average Slot Usage (%) 94 | . 96 97 86 Engine 12 | . 14 11 11 Leg 29 | . 28 33 31 Device 9 | . 11 10 2 Storage 12 | . 14 11 11 Processor 3 | . . 10 11 Energy Gun 4 | . 4 10 . Energy Cannon 3 | . . 6 10 Ballistic Gun 16 | . 22 4 7 Naked Turns . | . . . . Heaviest Build 20 | 12 17 20 19 Greatest Support 30 | 20 20 30 30 Greatest Overweight (x) 1 | 1 . . . Average Overweight (x) . | . . . . Largest Inventory Capacity 10 | 8 10 10 10 Average Capacity 9 | 7 9 10 10 Most Carried 10 | 8 10 9 9 Average Carried 8 | 4 9 8 6 Final Capacity 10 | 8 10 10 10 Final Carried 10 | 8 10 7 7 Class Distribution -------------------- 95% | Mutant 4% | Scavenger-Mutant Dominant Class ---------------- Mutant | -10/Materials Mutant | -9/Materials Mutant | -9/Mines Resources | -11 -10 -9 -9 ----------- Run | Jun Mat Mat Min Matter Collected 459 | 288 82 . 89 Remotely . | . . . . Salvage Created 370 | 103 134 133 . Parts 22 | 6 10 6 . Haulers Intercepted . | . . . . Recyclers Shooed 1 | 1 . . . Parts Field Recycled . | . . . . Retrieved Matter . | . . . . Parts Self-Destructed . | . . . . Prevented . | . . . . Kills | -11 -10 -9 -9 ------- Run | Jun Mat Mat Min Combat Hostiles Destroyed 6 | . 3 3 . Guns 3 | . 3 . . Cannons 3 | . . 3 . Classes Destroyed 5 | 2 2 1 . Tunneler 1 | 1 . . . Recycler 1 | 1 . . . Watcher 1 | . 1 . . Grunt 5 | . 3 2 . Duelist 1 | . . 1 . Best Kill Streak 3 | 1 3 3 . Combat Bots Only 3 | . 2 3 . Max Kills in Single Turn 1 | 1 1 1 . Gunslinging . | . . . . Exploded . | . . . . Melee . | . . . . Uniques/NPCs Destroyed . | . . . . Combat | -11 -10 -9 -9 -------- Run | Jun Mat Mat Min Damage Taken 1176 | . 265 328 583 Core 227 | . 24 74 129 Absorbed by Shields . | . . . . Core Remaining (%) 95 | 100 90 . . Volleys Fired 42 | 6 25 8 3 Largest 2 | 2 2 2 2 Hottest 108 | 40 60 108 88 Shots Fired 80 | 12 48 16 4 Gun 69 | 12 48 8 1 Cannon 9 | . . 8 1 Launcher 2 | . . . 2 Special . | . . . . Kinetic 58 | 12 45 . 1 Thermal 9 | . . 8 1 Explosive 2 | . . . 2 Electromagnetic 11 | . 3 8 . Robot Hit Streak 9 | 3 9 4 2 Robot Miss Streak 3 | 2 3 2 1 Penetration Max . | . . . . Secondary Targets 1 | . 1 . . Max Gunslinging Chain 1 | . 1 . . Shots Hit Robots 50 | 7 30 11 2 Core Hits 19 | 3 9 4 3 Critical Kills . | . . . . Critical Parts Destroyed . | . . . . Critical Strikes . | . . . . Melee Attacks . | . . . . Impact . | . . . . Slashing . | . . . . Piercing . | . . . . Sneak Attacks . | . . . . Combat Hostiles . | . . . . Follow-up Attacks . | . . . . Damage Inflicted 687 | 77 373 184 53 Guns 451 | 77 287 77 10 Cannons 128 | . . 107 21 Explosions 108 | . 86 . 22 Melee . | . . . . Ramming . | . . . . Kinetic 354 | 77 267 . 10 Thermal 128 | . . 107 21 Explosive 108 | . 86 . 22 Electromagnetic 97 | . 20 77 . Impact . | . . . . Slashing . | . . . . Piercing . | . . . . Highest Corruption . | . . . . Average Corruption . | . . . . Corruption Purged . | . . . . Corruption Blocked . | . . . . Overload Shots . | . . . . Overflow Damage . | . . . . Projectiles . | . . . . Explosions . | . . . . Melee . | . . . . Knockbacks . | . . . . Impact . | . . . . Kinetic . | . . . . Secondary . | . . . . Self-Inflicted Damage 79 | . 79 . . Shots 1 | . 1 . . Rammed . | . . . . Targets Rammed . | . . . . Kicked . | . . . . Crushed . | . . . . Highest Temperature 402 | . 20 402 22 Average Temperature 135 | . 10 197 16 Received Heat Transfer 294 | . 108 186 . Effects 1 | . . 1 . Shutdowns 1 | . . 1 . Siege Activations . | . . . . Robots Corrupted . | . . . . Combat Hostiles . | . . . . Parts Fried . | . . . . Impact Corruptions . | . . . . Robots Melted . | . . . . Combat Hostiles . | . . . . Parts Melted . | . . . . Heat Transferred 222 | . . 185 37 Parts Sabotaged . | . . . . Parts Stolen . | . . . . Parts Stripped . | . . . . Power Chain Reactions . | . . . . Missiles Intercepted . | . . . . Alert | -11 -10 -9 -9 ------- Run | Jun Mat Mat Min Peak Influence 199 | 10 199 112 31 Initial 27 | . 6 12 27 Average 55 | 5 76 46 27 Maximum Alert Level . | . . . . Low Security (%) 100 | 100 100 100 100 Level 1 . | . . . . Level 2 . | . . . . Level 3 . | . . . . Level 4 . | . . . . Level 5 . | . . . . High Security . | . . . . Max Security . | . . . . Squads Dispatched 2 | . 1 . 1 Investigation 1 | . . . 1 Extermination . | . . . . Reinforcement 1 | . 1 . . Assault . | . . . . Garrison . | . . . . Intercept . | . . . . Searches Triggered . | . . . . Construction Impeded . | . . . . Haulers Reinforced . | . . . . Active Scanning Responses . | . . . . Cargo Convoy Interrupts . | . . . . Stealth | -11 -10 -9 -9 --------- Run | Jun Mat Mat Min Distress Signals 3 | . 2 . 1 Communications Jammed . | . . . . Distress Signals . | . . . . Times Spotted 32 | . 11 8 13 Peak Tracking Total 10 | . 5 4 10 Tactical Retreats 1 | . 1 . . Traps | -11 -10 -9 -9 ------- Run | Jun Mat Mat Min Traps Triggered . | . . . . Indirectly . | . . . . Trap Hack Attempts . | . . . . Triggered . | . . . . Disarmed . | . . . . Reprogrammed . | . . . . Reused . | . . . . Traps Extracted . | . . . . Installed . | . . . . Triggered . | . . . . Machines | -11 -10 -9 -9 ---------- Run | Jun Mat Mat Min Machines Disabled 3 | . 2 1 . Max in Single Turn 2 | . 2 1 . Machines Repaired . | . . . . Machines Sabotaged . | . . . . Overloaded Fab Kills . | . . . . Hacking | -11 -10 -9 -9 --------- Run | Jun Mat Mat Min Machines Accessed 2 | . 1 . 1 Terminals 2 | . 1 . 1 Fabricators . | . . . . Repair Stations . | . . . . Recycling Units . | . . . . Scanalyzers . | . . . . Garrison Access . | . . . . Total Hacks 6 | . 3 . 3 Successful 4 | . 2 . 2 Failed 2 | . 1 . 1 Catastrophic . | . . . . Database Lockouts . | . . . . Manual 3 | . 3 . . Terminals 6 | . 3 . 3 Fabricators . | . . . . Repair Stations . | . . . . Recycling Units . | . . . . Scanalyzers . | . . . . Garrison Access . | . . . . Terminal Hacks 4 | . 2 . 2 Record 3 | . 1 . 2 Robot Analysis 1 | . 1 . . Fabricator Hacks . | . . . . Repair Station Hacks . | . . . . Recycling Unit Hacks . | . . . . Scanalyzer . | . . . . Garrison Access Hacks . | . . . . Unauthorized Hacks . | . . . . Terminals . | . . . . Fabricators . | . . . . Repair Stations . | . . . . Recycling Units . | . . . . Scanalyzers . | . . . . Garrison Access . | . . . . Data Cores Recovered . | . . . . Used . | . . . . Hacking Detections 1 | . . . 1 Full Trace Events 1 | . . . 1 Feedback Events . | . . . . Feedback Blocked . | . . . . Robot Schematics Acquired . | . . . . Robots Built . | . . . . Authchips . | . . . . Time . | . . . . Total Robot Build Rating . | . . . . Part Schematics Acquired . | . . . . Parts Built . | . . . . Authchips . | . . . . Time . | . . . . Total Part Build Rating . | . . . . Parts Repaired . | . . . . Time . | . . . . Parts Recycled . | . . . . Recycled Matter . | . . . . Retrieved Matter . | . . . . Retrieved Components . | . . . . Parts Scanalyzed . | . . . . Part Schematics Acquired . | . . . . Parts Damaged . | . . . . Bothacking | -11 -10 -9 -9 ------------ Run | Jun Mat Mat Min Used RIF Installer . | . . . . Robots Hacked . | . . . . Non-combat . | . . . . Combat . | . . . . Robot Hacks Applied . | . . . . Relay Couplers Released . | . . . . Fabnet Peak Effective % . | . . . . Robots Rewired . | . . . . Allies Hacked . | . . . . Hacks Repelled . | . . . . Allies | -11 -10 -9 -9 -------- Run | Jun Mat Mat Min Total Allies . | . . . . Largest Group . | . . . . Highest-Rated Group . | . . . . Highest-Rated Ally . | . . . . Total Orders . | . . . . Ally Attacks . | . . . . Total Damage . | . . . . Kills . | . . . . Allies Corrupted . | . . . . Allies Melted . | . . . . Intel | -11 -10 -9 -9 ------- Run | Jun Mat Mat Min Robot Analysis Total 1 | . 1 . . Derelict Logs Recovered 1 | . . . 1 Drone Launches . | . . . . Drone Recoveries . | . . . . Exploration | -11 -10 -9 -9 ------------- Run | Jun Mat Mat Min Turns Passed 1021 | 118 590 121 192 Spaces Moved 461 | 59 183 75 144 Core 4 | 4 . . . Treads . | . . . . Legs 457 | 55 183 75 144 Wheels . | . . . . Hover . | . . . . Flight . | . . . . Fastest Speed 50 | 50 120 120 120 Average Speed 120 | 127 120 120 120 Slowest Speed 190 | 190 120 120 120 Overloaded Moves . | . . . . Propulsion Burnouts . | . . . . Robots Hopped . | . . . . Cave-ins Triggered . | . . . . Exploration Rate (%) 22 | 4 37 11 38 Regions Visited 3 Branch Regions 1 Pre-discovered Areas . | . . . . Known Exits Taken . | . . . . Unknown Exits Taken 3 | 1 1 1 . Scrap Searched . | . . . . Spaces Dug . | . . . . Terrain Destroyed 28 | . 18 . 10 Melee . | . . . . Projectile . | . . . . AOE 28 | . 18 . 10 Terrain Rammed . | . . . . Walls Destroyed . | . . . . Machines Disabled . | . . . . Actions | -11 -10 -9 -9 --------- Run | Jun Mat Mat Min Total 847 | 87 512 89 159 Wait 301 | 8 287 . 6 Move 458 | 58 182 74 144 Hop . | . . . . Pick Up 20 | 8 8 1 3 Fast Attach 8 | 7 1 . . Attach 8 | . 1 4 3 Detach . | . . . . Swap 4 | . 2 2 . Drop 6 | . 6 . . Fire 42 | 6 25 8 3 Melee . | . . . . Ram . | . . . . Kick . | . . . . Crush . | . . . . Escape Stasis . | . . . . Rewire . | . . . . Trap . | . . . . Miscellaneous . | . . . . Route ------- -11/Junkyard -10/Materials -9/Materials -9/Mines (discovered 2 exits: *Mat x2) History --------- Turn | Location | Event 20 | -11/Junkyard | Discovered new exit (range 15) 119 | -11/Junkyard | Entered Materials 309 | -10/Materials | Build established: Mutant 704 | -10/Materials | Discovered new exit (range 5) 709 | -10/Materials | Entered another Materials area 709 | -9/Materials | Evolved 2 slots: Propulsion x1, Utility x1 810 | -9/Materials | Discovered new exit (range 15) 830 | -9/Materials | Entered Mines 846 | -9/Mines | Identified exit to Materials 859 | -9/Mines | Lost 4 parts (1p1n1u1w) 876 | -9/Mines | Met a Derelict bent on vengeance 951 | -9/Mines | Discovered exit to Materials (range 6) 994 | -9/Mines | Assembled infested the area 999 | -9/Mines | Assisted by a Guerilla fighting off Assembled 1022 | -9/Mines | Core integrity fell below 50% 1022 | -9/Mines | Self-destructed Last Messages --------------- coming from, and they're closing on this area, come on!" 00999_ U9-IAN(h): "I'll hold them off! Go on ahead or try to find another way!" 00999_ HV Slug penetrates Matter Pump. 00999_ Matter Pump disabled. 01002_ U9-IAN(h) destroyed. 01012_ Aluminum Leg destroyed. 01015_ as-96645 destroyed. 01015_ as-55957 destroyed. 01017_ Particle Cannon destroyed. 01017_ Lgt. Assault Rifle destroyed. 01017_ as-68290 destroyed. 01017_ as-03782 destroyed. 01019_ as-14820 destroyed. 01019_ as-52936 destroyed. 01019_ as-18449 destroyed. 01021_ Grenade Launcher destroyed. 01021_ Heat Sink destroyed. 01021_ as-06395 destroyed. 01022_ The unstable cave ceiling collapses. Map ----- +----------------------------------------------------+ | ?????????????????????????????????????????????# #?? | | ?????????????????????????????????????????????# #?? | | ?????????????????????????????????????????????# #?? | | ?????????????????????????????????????????????# #?? | | ?????????????????????????????????????????????# #?? | | ?????????????????????????????????????????????# #?? | | ?????????????????????????????????????????????# ### | | ?????????????????????????????????????????????# | | ?????????????????????????????????????????????#### | | ????????????????????????????????????????????????# | | ????????????????????????????????????????????????# | | ???????????????????????????????????????????????## | | ??????????????????????????????????????????????# % | | ???????????????????????????#????????????????### %< | | ?????????????????????????? ???????????##### # ! | | ?????????????????????????? #??????????## | | ?????????????????????????? #?????????## %= | | ?????????????????????????? #?????????# " " | | ??????????????????????????[#?????????# # | | ????????????????#?????????=#?????????# % ### # | | ????????????????# ?#######*##???###### ## # | | ??????????????????=**[% %= #### # ## # | | ???????????????????#%# ## # | | ???????????????????#a d #???# # | | ???????????????????# # ##???# # | | ???????????????????#aa @ d #????# ? | | ???????????????????## # ##????##? | | ????????????????????# ###???????? | | ????????????????????## ##?????????? | | ?????????????????????## ## ####??????????? | | ??????????????????????#######?# #?????????????? | | ????????????????????????????????####?????????????? | | | | | | | | | | | | | | | | | | | | | | | | | | | | | | | | | | | | | +----------------------------------------------------+ Best States ------------- Heat Dissipation 38 Energy Generation 10 Energy Capacity 125 Matter Stores 300 Matter Capacity 300 Sight Range 16 Robot Scan Range 14 Terrain Scan Density 10 Evasion (%) 55 Targeting Accuracy 5 Item Schematics ----------------- None Robot Schematics ------------------ None Fabricated ------------ Nothing Alien Tech Used ----------------- None Achievements -------------- None Challenges ------------ None Game ------ Seed LightWardroneAnalyzer Manual? 0 Play Time 00:14:37 Cumulative 14.3 hours Start 2023.07.21 @ 23:48:56 End 2023.07.22 @ 00:00:36 Sessions 1 Manual Loads 0 Difficulty Rogue Special Mode None Game No. 22 Rogue 21 Adventurer 1 Explorer 0 Win Type - Total 0 Types 0/0/0/0/0/0/0/0/0 Lore% 6 Gallery% 20 Achievement% 17 Wizard Run 0 Options --------- ASCII 0 Keyboard 0 Movement Mouse Keybinds 0 Fullscreen 1 Font 24/Smallcaps Map View 76x50 Tactical HUD 1 Map Filters NONE Filters NONE Steam 1 RUN: fe2484e2-c592-4910-9d54-2876325ee9e5